bitfinex-derivatives/quotes_ETHF0:USTF0_20250910
["timestamp","ask_amount","ask_price","bid_price","bid_amount"]
[1757514505081,3.4418,4435.2,4435.1,1.4599]
[1757514505282,3.2078,4435.7,4435.1,1.4599]
[1757514505585,3.2078,4435.7,4435.6,1.4599]
[1757514505783,3.4947,4435.7,4435.6,1.4599]
[1757514506081,3.5476,4435.7,4435.6,1.4599]
[1757514506483,3.5476,4435.7,4435.6,1.0516]
[1757514507581,3.5476,4435.7,4435.6,0.6351]
[1757514507780,3.2078,4435.7,4435.5,0.2356]
[1757514508083,0.1058,4435.6,4435.5,1.2872]
[1757514508275,0.3398,4435.6,4435.5,1.2872]
[1757514510883,0.2869,4435.6,4435.5,1.6955]
[1757514511486,0.234,4435.6,4435.5,1.6955]
[1757514511875,3.2078,4435.7,4435.6,0.40571]
[1757514512080,3.2078,4436.4,4436.3,1.4599]
[1757514513083,3.2607,4436.4,4436.3,1.4599]
[1757514513585,3.3136,4436.4,4436.3,1.4599]
[1757514513787,3.3136,4436.4,4436.3,0.6351]
[1757514514188,3.3136,4436.4,4436.1,0.6351]
[1757514514483,0.1058,4436.2,4436.1,0.6351]
[1757514515388,0.2869,4436.2,4436.1,1.4599]
[1757514516182,0.234,4436.2,4436.1,1.4599]
[1757514516987,3.2078,4436.4,4436.2,0.6351]
[1757514517281,0.234,4436.3,4436.2,1.4599]
[1757514518081,3.2078,4436.4,4436.2,1.4599]
[1757514518287,0.2869,4436.3,4436.2,0.8248]
[1757514518684,0.3398,4436.3,4436.2,1.4599]
[1757514518883,0.3398,4436.3,4436.2,0.6351]
[1757514519085,0.3729,4436.3,4436.0,0.2356]
[1757514519280,0.3729,4436.3,4435.5,0.2356]
[1757514519281,0.1058,4435.8,4435.6,1.18067862]
[1757514519481,3.5476,4435.7,4435.6,0.4165]
[1757514519681,0.0331,4435.6,4435.3,1.18067862]
[1757514519888,0.0331,4435.3,4435.0,1.18067862]
[1757514520088,3.3136,4435.1,4434.8,0.6351]
[1757514520284,0.1058,4434.9,4434.8,0.6351]
[1757514522084,0.1058,4434.9,4434.8,1.0516]
[1757514523785,0.1058,4434.9,4434.8,0.6351]
[1757514523987,0.234,4435.0,4434.5,0.2356]
[1757514523988,0.0125,4434.8,4434.5,0.2356]
[1757514524193,3.2603,4434.6,4434.0,0.8608]
[1757514524496,3.2478,4434.1,4434.0,0.8608]
[1757514524793,3.4818,4434.1,4434.0,1.2874]
[1757514525490,3.4418,4434.1,4434.0,1.6783]
[1757514525890,3.4418,4434.1,4434.0,0.8608]
[1757514525891,3.4818,4434.1,4434.0,0.8608]
[1757514526595,3.4943,4434.1,4434.0,0.8608]
[1757514526794,3.4943,4434.1,4433.5,0.2356]
[1757514526998,3.2478,4433.6,4433.5,1.2874]
[1757514527192,3.4818,4433.6,4433.5,1.2874]
[1757514527697,3.4418,4433.6,4433.0,0.8608]
[1757514527997,3.2078,4433.1,4433.0,0.8608]
[1757514528197,3.4418,4433.1,4433.0,0.8608]
[1757514530693,3.4818,4433.1,4433.0,0.8608]
[1757514530894,3.4818,4433.1,4433.0,1.2874]
[1757514532303,3.4818,4433.1,4433.0,0.8608]
[1757514532996,0.0278,4432.9,4432.2,0.6252]
[1757514533202,3.2078,4432.3,4432.0,0.8642]
[1757514533403,0.234,4432.2,4432.0,0.8642]
[1757514533603,3.2078,4432.3,4432.2,1.0518]
[1757514533804,3.4418,4432.3,4432.2,0.6252]
[1757514534509,3.4418,4432.3,4432.0,0.8642]
[1757514535009,3.4418,4432.3,4432.1,0.6252]
[1757514535202,3.4418,4432.3,4432.2,0.6252]
[1757514537802,3.4418,4432.3,4431.6,0.6252]
[1757514538005,3.2078,4431.7,4431.6,0.6252]
[1757514538311,3.4418,4431.7,4431.6,0.6252]
[1757514538711,3.4418,4431.7,4431.6,1.0518]
[1757514539210,3.4418,4431.7,4431.6,1.4427]
[1757514540203,3.2078,4431.7,4431.6,1.4427]
[1757514540401,3.4418,4431.7,4431.6,0.6252]
[1757514541407,3.4418,4431.7,4431.2,0.6252]
[1757514541816,7.4418,4431.7,4431.2,0.6252]
[1757514542307,3.66746001,4431.7,4431.0,0.239]
[1757514542506,3.2078,4431.1,4431.0,0.239]
[1757514542708,3.2078,4431.1,4430.6,0.6252]
[1757514542709,3.4418,4431.1,4430.6,0.6252]
[1757514542907,3.4418,4431.1,4430.5,0.239]
[1757514543108,0.234,4431.1,4431.0,0.8642]
[1757514543313,3.4418,4431.1,4431.0,0.8642]
[1757514543812,3.2078,4431.1,4431.0,1.2908]
[1757514544012,3.4418,4431.1,4431.0,1.2908]
[1757514544610,3.2078,4431.1,4431.0,1.2908]
[1757514544815,3.4418,4431.1,4431.0,1.2908]
[1757514545111,3.2078,4431.1,4431.0,1.2908]
[1757514545311,3.4418,4431.1,4431.0,1.2908]
[1757514546709,3.4418,4431.1,4431.0,0.8642]
[1757514547214,3.4418,4431.1,4431.0,1.2908]
[1757514547605,3.2078,4431.1,4431.0,1.2908]
[1757514547812,3.4418,4431.1,4431.0,1.6817]
[1757514548521,3.2078,4431.1,4431.0,1.6817]
[1757514548710,3.4418,4431.1,4431.0,1.6817]
[1757514548911,3.2078,4431.1,4431.0,1.6817]
[1757514549114,3.4418,4431.1,4431.0,1.6817]
[1757514551620,3.2078,4431.1,4431.0,5.6817]
[1757514551913,3.4418,4431.1,4431.0,5.6817]
[1757514552721,3.2078,4431.1,4431.0,5.6817]
[1757514552920,3.4418,4431.1,4431.0,5.6817]
[1757514554911,3.2078,4431.1,4431.0,5.6817]
[1757514556025,1.9612,4431.1,4431.0,5.6817]
[1757514556617,0.2397,4432.5,4431.1,0.40614]
[1757514556618,0.8482,4432.0,4431.1,0.40614]
[1757514556824,1.0822,4432.0,4431.0,7.62674303]
[1757514557021,0.6085,4431.9,4431.0,7.62674303]
[1757514557320,1.0049,4431.9,4431.2,2.99926441]
[1757514557510,1.0049,4431.9,4431.1,2.99926441]
[1757514557919,1.0049,4431.9,4431.3,2.96906272]
[1757514558221,1.0049,4431.9,4431.2,0.234]
[1757514558815,1.0049,4431.9,4431.3,2.89241437]
[1757514559217,0.3964,4431.4,4431.1,1.18067862]
[1757514559416,0.6085,4431.2,4431.0,1.18067862]
[1757514559618,0.3964,4431.4,4431.0,1.18067862]
[1757514559825,0.3964,4431.2,4431.0,1.18067862]
[1757514560023,1.0049,4431.1,4431.0,1.18067862]
[1757514560219,0.6085,4430.9,4430.8,1.18067862]
[1757514560419,1.408,4430.9,4430.7,1.18067862]
[1757514560627,1.0049,4430.8,4430.7,1.18067862]
[1757514561223,1.6477,4430.5,4430.4,1.18067862]
[1757514561423,1.6477,4430.5,4430.4,1.19230123]
[1757514561626,1.0392,4430.5,4430.1,1.42630123]
[1757514561924,0.6085,4430.4,4430.1,1.42630123]
[1757514562118,0.6085,4430.3,4430.1,1.42630123]
[1757514562319,0.6085,4430.4,4430.1,1.42630123]
[1757514562517,0.2397,4430.5,4430.1,1.42630123]
[1757514562713,0.6085,4430.4,4430.1,1.42630123]
[1757514562920,0.3964,4430.4,4430.1,1.42630123]
[1757514563120,0.6085,4430.4,4430.1,1.42630123]
[1757514563621,0.6085,4430.3,4430.1,1.42630123]
[1757514563925,0.2397,4430.5,4430.1,1.42630123]
[1757514563926,0.3964,4430.4,4430.1,1.42630123]
[1757514564226,0.6361,4430.0,4429.7,0.234]
[1757514564526,0.6085,4429.9,4429.7,0.234]
[1757514565225,0.3964,4429.9,4429.7,0.234]
[1757514565424,0.6085,4429.8,4429.7,0.234]
[1757514565918,1.0049,4429.8,4429.7,0.234]
[1757514567223,0.6085,4429.6,4429.5,3.2078]
[1757514567423,0.6085,4429.6,4429.5,3.4418]
[1757514568126,0.6085,4429.9,4429.6,0.40628]
[1757514569625,0.6085,4429.9,4429.7,0.40627]
[1757514570027,0.6085,4429.9,4429.5,3.84808]
[1757514570223,0.6085,4429.9,4429.7,0.40627]
[1757514570426,0.6085,4429.9,4429.8,0.64026]
[1757514570930,0.6085,4429.9,4429.8,0.234]
[1757514571428,0.6085,4430.4,4430.1,0.40623]
[1757514571621,0.6085,4430.4,4430.3,1.19240131]
[1757514571923,1.408,4430.4,4430.3,1.19240131]
[1757514573027,1.408,4430.4,4430.2,1.19240131]
[1757514573326,0.6361,4430.0,4429.9,0.234]
[1757514573526,1.2446,4430.0,4429.9,0.64025]
[1757514573821,1.6477,4430.0,4429.9,0.64025]
[1757514574224,1.6477,4430.0,4429.9,0.234]
[1757514574827,1.6477,4430.0,4429.9,0.64025]
[1757514576128,1.6477,4430.0,4429.7,0.234]
[1757514576628,1.6477,4430.0,4429.7,0.64027]
[1757514576929,1.6477,4430.0,4429.7,0.234]
[1757514578229,1.6477,4430.0,4429.5,3.2078]
[1757514578421,1.408,4429.1,4429.0,3.4418]
[1757514578929,1.408,4429.1,4429.0,0.234]
[1757514582927,0.6085,4428.9,4428.5,3.61418]
[1757514583127,0.3964,4428.7,4428.6,0.234]
[1757514583422,1.0049,4428.7,4428.6,0.234]
[1757514583626,1.0049,4428.7,4428.6,3.23349018]
[1757514583827,1.408,4428.7,4428.6,3.23349018]
[1757514584029,1.408,4428.7,4428.6,3.24289018]
[1757514584427,1.408,4428.7,4428.6,3.23349018]
[1757514584629,1.408,4428.7,4428.6,0.234]
[1757514584826,1.4157,4428.7,4428.6,0.234]
[1757514585222,0.6162,4428.6,4428.5,3.2078]
[1757514585422,1.4217,4428.6,4428.5,3.2078]
[1757514585623,1.4217,4428.2,4428.1,0.2434]
[1757514585935,1.4217,4428.2,4428.1,0.2528]
[1757514586232,1.4217,4428.2,4428.1,0.2434]
[1757514586726,1.4217,4428.2,4428.1,0.234]
[1757514587639,1.4217,4428.2,4427.5,3.79732743]
[1757514587640,0.2325,4428.0,4427.5,3.79732743]
[1757514587827,1.4217,4427.7,4427.6,0.64046]
[1757514588027,1.4217,4427.7,4427.6,0.64986]
[1757514588327,1.4217,4427.7,4427.6,0.65926]
[1757514589133,1.4217,4427.7,4427.6,0.2528]
[1757514590131,1.4217,4427.7,4427.6,0.234]
[1757514590329,1.0089,4427.2,4427.1,0.20156913]
[1757514590627,0.6162,4427.2,4427.1,0.2587]
[1757514590826,0.6162,4427.2,4427.1,0.2528]
[1757514591026,1.0089,4427.2,4427.1,0.2528]
[1757514591423,1.4217,4427.2,4427.1,0.2528]
[1757514591628,1.4217,4427.2,4427.1,0.65931]
[1757514591826,0.2325,4427.5,4427.4,0.42528]
[1757514591827,1.2414,4427.5,4427.4,0.42528]
[1757514592021,1.2414,4427.5,4427.4,0.65828]
[1757514592231,1.6542,4427.5,4427.4,0.2518]
[1757514592428,1.6542,4427.5,4427.4,0.65828]
[1757514592831,1.2414,4427.5,4427.4,0.2518]
[1757514594226,1.6542,4427.5,4427.4,0.2518]
[1757514594422,1.6542,4427.5,4427.4,0.2424]
[1757514594628,1.6542,4427.5,4427.4,0.233]
[1757514595325,1.6542,4427.5,4427.4,1.42308526]
[1757514595527,1.6542,4427.5,4427.4,1.19008526]
[1757514595724,1.038,4427.5,4427.3,1.42308526]
[1757514595925,0.8055,4427.4,4427.2,1.19008526]
[1757514596126,1.4217,4427.3,4427.2,1.19008526]
[1757514596429,0.8055,4427.3,4427.1,1.19008526]
[1757514596634,1.4217,4427.2,4427.1,1.19008526]
[1757514597326,0.6162,4427.1,4427.0,4.39788526]
[1757514597529,1.4217,4427.1,4427.0,4.39788526]
[1757514597730,1.4217,4427.1,4427.0,1.19008526]
[1757514598025,1.4217,4427.1,4426.9,1.19008526]
[1757514598337,1.4217,4426.9,4426.8,1.18972783]
[1757514598533,1.4217,4426.9,4426.1,0.233]
[1757514599431,0.2325,4427.0,4426.1,0.233]
[1757514599432,1.4217,4426.2,4426.1,0.233]
[1757514600127,1.4217,4426.2,4425.6,0.75464711]
[1757514600340,0.2325,4425.5,4425.3,3.2078]
[1757514600640,0.6162,4425.8,4425.4,0.5714]
[1757514600838,1.0089,4425.8,4425.7,1.3798]
[1757514601040,1.4217,4425.8,4425.7,1.3798]
[1757514601340,1.4217,4425.8,4425.7,0.413]
[1757514601539,1.4217,4425.8,4425.3,3.2078]
[1757514601540,0.2325,4425.5,4425.3,3.2078]
[1757514601844,1.4217,4425.5,4425.4,1.3798]
[1757514602046,0.8055,4425.5,4425.4,1.3798]
[1757514602644,1.6542,4425.5,4425.4,0.413]
[1757514603140,0.8055,4425.5,4425.4,1.3798]
[1757514603340,1.0089,4425.8,4425.7,1.3798]
[1757514603545,1.4217,4425.8,4425.7,0.8084]
[1757514603737,1.4217,4425.8,4425.7,1.3798]
[1757514603942,4.0133,4426.2,4426.1,1.3798]
[1757514604134,0.3927,4426.2,4426.1,1.3798]
[1757514604346,4.6295,4426.8,4426.7,0.413]
[1757514604938,4.6295,4426.8,4426.3,0.233]
[1757514604939,0.2325,4426.5,4426.3,0.233]
[1757514605244,1.4217,4426.4,4426.3,1.2174]
[1757514605444,0.8055,4426.4,4426.3,1.6128]
[1757514605639,1.0089,4426.7,4426.6,1.3798]
[1757514605945,1.4217,4426.7,4426.6,1.3798]
[1757514607138,0.3927,4426.8,4426.7,0.5714]
[1757514607438,0.3927,4426.8,4426.7,1.3798]
[1757514607748,0.6162,4427.3,4426.7,5.21494]
[1757514607942,1.0089,4427.3,4427.2,1.3798]
[1757514608140,3.2078,4427.9,4427.2,1.3798]
[1757514608141,1.0089,4427.8,4427.7,0.8084]
[1757514608336,1.0089,4427.8,4427.7,1.3798]
[1757514608539,1.4217,4427.8,4427.7,0.413]
[1757514608940,1.4217,4427.8,4427.7,1.3798]
[1757514609443,0.3927,4427.8,4427.7,1.3798]
[1757514609639,0.6162,4428.2,4427.8,0.5714]
[1757514609843,1.0089,4428.2,4428.1,1.3798]
[1757514610236,1.4217,4428.2,4428.1,1.3798]
[1757514610641,0.6162,4428.9,4428.2,0.5714]
[1757514610942,1.0089,4428.3,4428.2,1.3798]
[1757514611243,0.6162,4428.9,4428.2,1.3798]
[1757514611440,0.3927,4428.3,4428.2,1.3798]
[1757514612441,0.6162,4428.6,4428.3,0.5714]
[1757514612641,1.0089,4428.6,4428.5,1.3798]
[1757514612937,1.4217,4429.5,4429.4,1.3798]
[1757514613142,1.6542,4429.5,4429.4,0.8084]
[1757514613344,1.6542,4429.5,4429.1,0.5714]
[1757514613544,1.038,4429.5,4429.1,0.5714]
[1757514613735,1.4217,4429.4,4429.3,0.413]
[1757514614140,1.4217,4429.4,4429.3,0.8084]
[1757514614348,1.4217,4429.4,4429.3,1.4038]
[1757514615342,1.6672,4430.5,4430.4,0.3863]
[1757514615545,1.4347,4430.5,4430.4,1.3895]
[1757514616348,1.4347,4430.5,4430.4,0.3863]
[1757514616648,1.0493,4430.5,4430.3,3.2078]
[1757514616849,1.4347,4430.4,4430.3,3.2078]
[1757514617450,1.4347,4430.4,4430.3,3.5941]
[1757514617650,1.4347,4430.4,4430.3,4.5973]
[1757514619354,1.4347,4431.0,4430.9,1.3895]
[1757514619852,0.4061,4431.0,4430.9,1.3895]
[1757514620055,0.4061,4431.0,4430.8,3.4408]
[1757514620056,4.2294,4431.5,4431.4,0.7941]
[1757514620254,4.2294,4431.5,4431.3,0.233]
[1757514620255,0.6155,4431.4,4431.3,0.233]
[1757514620443,0.8192,4431.4,4431.3,0.233]
[1757514620646,1.4347,4431.4,4431.3,0.233]
[1757514624658,1.4347,4431.4,4431.3,0.6193]
[1757514624850,1.4347,4431.4,4431.3,1.6225]
[1757514625152,0.6155,4431.7,4431.3,4.8303]
[1757514625350,0.6155,4432.2,4431.7,0.5954]
[1757514625552,0.6155,4432.2,4431.5,0.2356]
[1757514625553,0.6155,4432.2,4432.1,1.3895]
[1757514625851,0.6155,4432.2,4432.1,0.7941]
[1757514625852,1.4347,4432.2,4432.1,0.7941]
[1757514626156,1.4347,4432.2,4432.1,0.6193]
[1757514628056,1.4347,4432.2,4432.1,1.2147]
[1757514628355,0.4061,4432.2,4432.1,1.6225]
[1757514629057,0.6155,4432.6,4432.1,1.6225]
[1757514629356,1.4347,4432.8,4432.2,0.5954]
[1757514630055,1.4347,4432.8,4432.7,0.3863]
[1757514630452,1.4347,4432.8,4432.2,0.5954]
[1757514630651,0.4061,4431.9,4431.8,4.5973]
[1757514630851,0.2301,4431.5,4431.3,3.8032]
[1757514631046,1.4347,4431.4,4431.3,4.1895]
[1757514631249,1.4347,4431.4,4431.3,3.5941]
[1757514631550,0.8456,4431.0,4430.9,32.509]
[1757514631748,0.8456,4431.0,4430.9,32.742]
[1757514632549,0.8456,4431.0,4430.9,33.3374]
[1757514632752,0.6155,4431.0,4430.9,33.3374]
[1757514633851,0.6155,4430.9,4430.8,3.2078]
[1757514634058,1.4347,4430.4,4430.3,3.2078]
[1757514634358,1.4347,4429.9,4429.8,3.2078]
[1757514634953,0.6155,4429.8,4429.7,0.233]
[1757514635155,0.6155,4429.8,4429.2,3.8032]
[1757514635156,0.6155,4429.7,4429.2,3.8032]
[1757514635453,1.4347,4429.4,4429.2,3.2078]
[1757514635652,1.4347,4429.3,4429.2,3.4408]
[1757514635957,1.4347,4429.3,4429.2,0.233]
[1757514636156,0.8192,4429.3,4429.1,0.233]
[1757514636455,0.2301,4429.5,4429.1,1.2147]
[1757514636456,1.4347,4429.2,4429.1,1.2147]
[1757514636854,1.4347,4429.2,4429.1,1.6225]
[1757514638558,0.4061,4429.2,4429.1,1.6225]
[1757514638850,1.4347,4429.9,4429.8,0.9817]
[1757514639054,1.4347,4429.9,4429.8,0.3863]
[1757514639356,0.8192,4429.6,4429.5,0.6193]
[1757514639655,0.8192,4429.2,4429.1,3.2078]
[1757514639859,1.4347,4429.2,4429.1,3.4408]
[1757514640450,1.4347,4429.2,4429.1,3.8271]
[1757514640653,3.6139,4429.7,4429.6,0.7941]
[1757514640962,4.6425,4429.7,4429.6,0.3863]
[1757514641156,4.6425,4429.7,4429.1,3.4408]
[1757514641157,0.6155,4429.6,4429.4,0.233]
[1757514641356,1.6648,4429.5,4429.4,0.233]
[1757514642056,1.0493,4429.5,4429.1,3.2078]
[1757514642254,1.4347,4429.3,4429.2,0.233]
[1757514642451,1.4347,4429.3,4429.2,0.6193]
[1757514644056,0.4061,4429.3,4429.2,1.5635]
[1757514644565,0.2301,4430.0,4429.2,1.5635]
[1757514644566,1.0158,4429.9,4429.8,1.3594]
[1757514644763,1.4262,4429.9,4429.8,0.4152]
[1757514645057,0.8122,4429.9,4429.5,0.233]
[1757514645261,1.4262,4429.6,4429.5,1.221]
[1757514645454,1.4262,4429.6,4429.5,1.5924]
[1757514646156,0.4018,4429.7,4429.6,1.3594]
[1757514646356,1.0158,4429.7,4429.6,1.3594]
[1757514647057,0.4018,4429.7,4429.6,1.3594]
[1757514647263,0.614,4430.1,4429.7,0.5728]
[1757514647460,0.4018,4429.8,4429.7,1.3594]
[1757514647862,1.4262,4429.8,4429.7,1.3594]
[1757514648160,1.4262,4429.8,4429.2,0.751182]
[1757514648358,0.614,4429.2,4429.1,3.2078]
[1757514648559,1.4262,4429.2,4429.1,3.856]
[1757514648859,1.0158,4429.2,4429.1,4.5672]
[1757514649060,1.4262,4429.2,4429.1,4.5672]
[1757514649259,1.4262,4429.2,4429.1,4.8002]
[1757514649460,0.8122,4429.2,4429.1,3.856]
[1757514649766,1.4262,4429.2,4429.1,3.856]
[1757514650163,1.4262,4429.2,4429.1,3.623]
[1757514650358,0.2265,4429.0,4428.9,0.233]
[1757514650567,1.6527,4429.0,4428.9,0.233]
[1757514650870,0.8122,4427.6,4427.5,3.623]
[1757514651067,0.4018,4427.6,4427.5,4.8128]
[1757514651362,0.614,4428.3,4427.6,0.5728]
[1757514651569,0.4018,4427.7,4427.6,0.988]
[1757514651865,1.4262,4427.7,4427.6,0.988]
[1757514652064,0.4018,4427.7,4427.6,1.3594]
[1757514652664,0.614,4428.1,4427.6,0.7866]
[1757514652857,3.8218,4428.5,4428.0,1.605]
[1757514653056,4.634,4428.5,4428.4,0.4152]
[1757514653261,0.614,4428.4,4428.3,0.4152]
[1757514653453,1.4262,4428.4,4428.3,0.988]
[1757514653659,1.4262,4428.4,4428.3,0.4152]
[1757514653854,1.4262,4428.4,4428.0,0.233]
[1757514654062,1.4262,4428.1,4428.0,1.221]
[1757514654258,4.0483,4428.5,4428.0,1.838]
[1757514654459,1.4262,4428.9,4428.8,0.7866]
[1757514654665,0.8122,4428.6,4428.1,0.5728]
[1757514654862,1.4262,4428.2,4428.1,0.4152]
[1757514655257,1.4262,4428.2,4427.8,0.233]
[1757514655463,1.4262,4428.0,4427.9,0.988]
[1757514655863,1.4262,4428.0,4427.9,1.3594]
[1757514656965,1.4262,4428.0,4427.8,0.233]
[1757514656966,4.634,4428.5,4428.4,0.988]
[1757514657769,4.634,4428.5,4428.4,1.3594]
[1757514659170,1.0158,4429.0,4428.9,1.3594]
[1757514659368,1.4262,4429.0,4428.9,1.3594]
[1757514660469,1.0158,4429.4,4429.3,1.3594]
[1757514660666,1.4262,4429.4,4429.3,1.3594]
[1757514660867,1.4262,4429.4,4428.8,0.5728]
[1757514661969,1.4262,4429.4,4429.3,0.4152]
[1757514662165,1.4262,4429.4,4429.0,0.5728]
[1757514662370,0.4018,4429.0,4428.9,3.72679768]
[1757514662672,0.614,4429.9,4429.2,0.7866]
[1757514662871,4.02,4430.2,4430.1,0.4152]
[1757514663072,4.634,4430.2,4429.6,0.5728]
[1757514663273,0.8122,4429.7,4429.6,0.233]
[1757514663575,1.4262,4429.7,4429.6,0.6482]
[1757514663768,1.4262,4429.7,4429.6,0.988]
[1757514664975,1.4262,4429.7,4429.6,2.18026528]
[1757514665274,1.4262,4429.7,4429.6,2.55166528]
[1757514665481,0.4018,4429.7,4429.6,1.3594]
[1757514665965,1.0158,4430.1,4430.0,0.7866]
[1757514666171,0.4018,4430.1,4430.0,1.605]
[1757514666674,4.634,4430.9,4430.8,0.4152]
[1757514666875,4.634,4430.9,4430.8,0.988]
[1757514667079,4.634,4430.9,4430.8,1.3594]
[1757514667279,1.4262,4430.9,4430.8,1.3594]
[1757514667480,0.614,4431.3,4430.8,1.3594]
[1757514667677,0.614,4431.4,4430.9,0.5728]
[1757514667878,0.4018,4431.0,4430.9,1.3594]
[1757514668576,1.0387,4431.0,4430.4,4.40301439]
[1757514668874,1.4262,4430.6,4430.3,1.19521439]
[1757514669079,1.4262,4430.4,4430.3,1.19521439]
[1757514669472,1.0158,4430.9,4430.8,1.3594]
[1757514669779,1.4262,4430.9,4430.8,1.3594]
[1757514672273,1.4262,4430.9,4430.8,0.4152]
[1757514672480,1.4262,4430.9,4430.3,1.19443842]
[1757514672481,0.4018,4430.5,4430.4,1.5924]
[1757514672688,0.614,4430.4,4430.2,3.2078]
[1757514672896,0.8122,4430.1,4429.9,1.19443842]
[1757514673078,3.4343,4430.5,4429.7,1.0196]
[1757514673079,0.4018,4429.8,4429.7,1.0196]
[1757514673393,0.4018,4429.8,4429.7,1.5924]
[1757514673687,3.4343,4430.5,4429.7,1.0196]
[1757514673987,4.634,4430.5,4430.4,1.3594]
[1757514674186,3.798,4431.2,4430.9,0.5554]
[1757514674488,3.798,4431.2,4430.9,1.3186]
[1757514674489,0.3911,4431.0,4430.9,1.3186]
[1757514674678,0.9813,4431.0,4430.9,1.3186]
[1757514676080,3.2078,4431.2,4431.1,1.3186]
[1757514676287,4.5911,4431.2,4431.1,1.3186]
[1757514677176,0.5902,4431.7,4431.1,0.7632]
[1757514677383,1.3833,4431.7,4431.6,0.3728]
[1757514677679,1.6163,4431.7,4431.2,0.5554]
[1757514677880,0.5902,4431.6,4431.1,0.5554]
[1757514678081,0.3911,4431.2,4431.1,0.7632]
[1757514678585,0.3911,4431.2,4431.1,1.3186]
[1757514678991,0.8232,4431.7,4431.2,0.5554]
[1757514679197,0.3911,4431.3,4431.2,0.3728]
[1757514679489,0.3911,4431.3,4431.2,0.7632]
[1757514679891,0.5902,4431.6,4431.2,1.3186]
[1757514680186,0.9813,4431.6,4431.5,1.3186]
[1757514680585,1.3833,4431.6,4431.5,1.3186]
[1757514680789,0.7931,4431.1,4431.0,0.9282]
[1757514680992,1.3833,4431.1,4431.0,0.9282]
[1757514681590,1.3833,4430.6,4430.5,4.3588]
[1757514681793,1.3833,4430.6,4430.5,4.136]
[1757514682087,0.2196,4431.0,4430.5,4.7492]
[1757514682088,0.5902,4431.0,4430.5,4.7492]
[1757514682288,0.5902,4431.2,4430.6,0.5554]
[1757514683083,0.7931,4431.2,4431.1,1.3186]
[1757514683285,0.5902,4431.5,4431.1,1.3186]
[1757514683592,0.8232,4431.9,4431.2,0.5554]
[1757514683890,0.3911,4431.3,4431.2,1.3186]
[1757514684086,3.798,4432.1,4431.3,0.5554]
[1757514684287,0.9813,4431.4,4431.3,1.3186]
[1757514684988,3.2078,4432.1,4431.4,0.5554]
[1757514685195,3.2078,4432.1,4432.0,0.9282]
[1757514685196,4.5911,4432.1,4432.0,0.9282]
[1757514685389,4.5911,4432.1,4432.0,1.3186]
[1757514685390,0.7931,4432.1,4432.0,1.3186]
[1757514686190,1.3833,4432.1,4432.0,1.3186]
[1757514687493,1.3833,4432.1,4432.0,0.3728]
[1757514687689,0.8098,4432.0,4431.7,0.5554]
[1757514687889,1.3833,4431.8,4431.3,1.19443842]
[1757514688085,0.3911,4431.4,4431.3,1.1612]
[1757514688289,0.9813,4431.4,4431.3,2.74603842]
[1757514688491,0.3911,4431.4,4431.3,2.74603842]
[1757514688891,0.5902,4431.9,4431.3,2.19063842]
[1757514689099,0.3911,4431.9,4431.8,1.3186]
[1757514689795,0.9813,4431.9,4431.8,1.3186]
[1757514689995,0.3911,4431.9,4431.8,1.3186]
[1757514690990,0.3911,4431.9,4431.5,1.41723842]
[1757514690991,0.233,4432.2,4432.0,0.2228]
[1757514691199,0.6241,4432.2,4432.1,1.3186]
[1757514691400,1.6163,4432.2,4432.1,1.3186]
[1757514693397,0.5902,4432.7,4432.1,1.3186]
[1757514693601,1.6163,4432.6,4432.5,0.9282]
[1757514694100,1.6163,4432.6,4432.5,0.3728]
[1757514694791,1.6163,4432.6,4432.1,0.5554]
[1757514694997,0.3911,4432.2,4432.1,1.3186]
[1757514695502,0.9813,4432.2,4432.1,1.3186]
[1757514695999,1.3833,4432.2,4432.1,1.3186]
[1757514696204,1.3833,4432.2,4431.8,1.19443842]
[1757514696205,1.3833,4431.9,4431.8,1.19443842]
[1757514696503,0.5902,4431.8,4431.7,1.19443842]
[1757514696701,1.3833,4431.8,4431.7,1.19443842]
[1757514696902,1.3833,4431.8,4431.7,1.56723842]
[1757514697201,1.3833,4431.8,4431.7,2.51303842]
[1757514697393,0.3911,4431.8,4431.7,2.51303842]
[1757514697594,4.5911,4432.3,4432.2,1.3186]
[1757514697795,1.3833,4432.3,4432.2,1.3186]
[1757514698694,0.233,4432.5,4432.2,0.7632]
[1757514699008,0.6241,4432.5,4432.4,1.3186]
[1757514699199,1.6163,4432.5,4432.4,1.3186]
[1757514699598,0.7931,4432.2,4432.1,0.9282]
[1757514699802,1.3833,4432.2,4432.1,0.3728]
[1757514700300,1.3833,4432.2,4432.1,0.9282]
[1757514701006,1.3833,4432.2,4432.1,0.3728]
[1757514701399,1.3833,4432.2,4432.1,0.9282]
[1757514702299,1.3833,4433.4,4433.3,0.9282]
[1757514702497,1.3833,4433.4,4433.3,0.3728]
[1757514703208,0.3911,4433.4,4433.3,1.3186]
[1757514703406,0.5902,4433.8,4433.3,0.7632]
[1757514703601,3.2078,4433.9,4433.8,1.3186]
[1757514704010,3.5989,4433.9,4433.8,1.3186]
[1757514705710,4.5503,4433.9,4433.8,1.3186]
[1757514707010,0.9568,4433.6,4433.5,1.3635]
[1757514707211,1.3372,4433.4,4433.3,1.20352415]
[1757514707405,1.3372,4433.4,4433.2,1.20352415]
[1757514707613,0.2188,4433.5,4433.0,3.788]